bitfinex/quotes_SOLUSD_20240624
["timestamp","ask_amount","ask_price","bid_price","bid_amount"]
[1719219768184,7.934,126.04,125.97,0.34]
[1719219768361,7.934,126.04,125.97,0.17]
[1719219768566,23.9169,126.05,125.97,0.17]
[1719219768957,7.9324,126.07,125.98,7.9374]
[1719219769271,7.9329,126.06,125.98,6.357]
[1719219769458,7.9329,126.06,125.98,14.2946]
[1719219769781,7.9335,126.05,125.98,6.357]
[1719219770162,22.3633,126.08,125.98,6.357]
[1719219770362,7.9336,126.05,125.98,6.357]
[1719219770759,7.9342,126.04,125.98,6.357]
[1719219771075,7.9352,126.02,125.97,0.5154]
[1719219771860,0.17,126.05,125.95,6.6081]
[1719219772075,7.936,126.01,125.95,6.6081]
[1719219772476,7.9365,126.0,125.95,6.6081]
[1719219772970,7.9365,126.0,125.92,393.7411]
[1719219773164,7.9365,126.0,125.92,400.6837]
[1719219773359,7.9365,126.0,125.92,392.7426]
[1719219773565,7.9365,126.0,125.92,400.684]
[1719219774575,7.9365,126.0,125.93,0.17]
[1719219775491,7.9365,126.0,125.93,0.34]
[1719219776273,7.9361,126.01,125.93,0.34]
[1719219778186,7.9365,126.0,125.93,0.34]
[1719219778495,15.992,126.02,125.92,6.9426]
[1719219778807,45.34,126.01,125.92,6.9426]
[1719219779275,7.9368,126.0,125.92,6.9426]
[1719219779487,7.9368,126.0,125.93,0.34]
[1719219780388,22.45970848,126.02,125.93,0.34]
[1719219780565,8.1049,126.03,125.94,7.9402]
[1719219780764,7.9368,126.0,125.95,0.92668014]
[1719219781190,7.9368,126.0,125.93,0.34]
[1719219781386,7.9372,125.99,125.93,0.34]
[1719219781589,7.9363,126.01,125.93,0.34]
[1719219781892,7.9365,126.0,125.93,0.34]
[1719219782677,7.936,126.01,125.93,0.34]
[1719219783189,7.9351,126.03,125.93,0.34]
[1719219783389,7.9346,126.03,125.95,7.9396]
[1719219783592,7.9354,126.02,125.94,7.9402]
[1719219783894,63.3999,126.05,125.92,6.9426]
[1719219784088,63.3999,126.05,125.94,7.9398]
[1719219784089,15.6399,126.05,125.94,7.9398]
[1719219784300,15.6399,126.05,125.95,45.34]
[1719219784471,15.6399,126.05,125.95,0.17]
[1719219784675,15.6399,126.05,125.95,8.1096]
[1719219784893,15.6399,126.05,125.96,8.1089]
[1719219785065,15.6399,126.05,125.97,0.17]
[1719219785271,15.6399,126.05,125.97,0.34]
[1719219785474,15.6399,126.05,125.98,0.5154]
[1719219785994,6.35195568,126.06,125.98,0.5154]
[1719219786312,22.1169,126.08,125.98,6.9819]
[1719219786492,69.8769,126.08,125.98,6.9819]
[1719219786873,69.8769,126.08,125.95,6.9819]
[1719219787376,47.76,126.06,125.95,6.9819]
[1719219787582,45.34,126.05,125.95,6.9819]
[1719219788487,7.9349,126.03,125.96,0.17]
[1719219788685,7.9341,126.04,125.95,14.9211]
[1719219789085,7.9347,126.03,125.95,6.9819]
[1719219789791,7.9354,126.02,125.95,6.9819]
[1719219789985,7.9367,126.0,125.95,6.9819]
[1719219790373,7.9361,126.01,125.95,6.9819]
[1719219790572,45.34,126.05,125.95,6.9819]
[1719219790573,7.9355,126.02,125.95,6.9819]
[1719219791484,7.9349,126.03,125.95,6.9819]
[1719219791699,45.34,126.05,125.95,6.9819]
[1719219791999,7.9347,126.03,125.95,6.9819]
[1719219792298,7.9342,126.04,125.96,0.34]
[1719219792778,28.57859061,126.08,125.96,0.34]
[1719219792979,7.9327,126.06,125.97,7.9378]
[1719219793195,21.97089061,126.08,125.98,45.34]
[1719219793381,21.97089061,126.08,125.99,0.17]
[1719219793574,7.9332,126.06,125.99,0.17]
[1719219793986,7.9323,126.07,125.99,0.17]
[1719219794874,21.97089061,126.08,125.99,0.17]
[1719219795076,6.46169061,126.08,126.0,6.9966]
[1719219795276,22.0383,126.11,126.01,0.34]
[1719219795497,22.0383,126.11,126.0,6.9966]
[1719219796194,22.0383,126.11,126.01,8.2755]
[1719219796374,22.0383,126.11,126.01,0.34]
[1719219796796,45.34,126.1,126.01,0.34]
[1719219797307,45.34,126.1,126.0,6.9966]
[1719219799572,93.1,126.1,126.0,6.9966]
[1719219799997,93.1,126.1,126.0,0.5154]
[1719219800206,93.1,126.1,125.98,385.8]
[1719219800403,93.1,126.1,125.97,6.5791]
[1719219802699,47.93,126.1,125.98,0.17]
[1719219802903,28.28842582,126.11,125.98,0.34]
[1719219803204,76.04842582,126.11,125.98,0.34]
[1719219804010,76.04842582,126.11,125.97,6.5791]
[1719219804187,47.76,126.09,125.94,385.8]
[1719219804514,47.76,126.07,125.94,385.8]
[1719219804689,67.1973,126.06,125.94,385.8]
[1719219805005,114.9573,126.06,125.94,385.8]
[1719219807015,114.9573,126.06,125.93,6.7395]
[1719219807186,63.4256,126.04,125.9,6.1822]
[1719219807385,63.4256,126.02,125.89,0.5154]
[1719219807707,0.34,126.01,125.89,0.5154]
[1719219807911,47.76,126.0,125.89,0.5154]
[1719219808084,0.34,125.99,125.89,0.5154]
[1719219808284,93.1,125.99,125.89,0.5154]
[1719219808500,93.1,125.99,125.87,7.0442343]
[1719219808901,30.0,125.98,125.87,7.0442343]
[1719219809097,45.34,125.97,125.87,7.0442343]
[1719219809810,7.9407,125.94,125.87,7.0442343]
[1719219810008,30.0,125.92,125.87,7.0442343]
[1719219810383,30.0,125.92,125.87,14.9885343]
[1719219810584,30.0,125.92,125.88,0.17]
[1719219810807,30.0,125.92,125.87,8.88204554]
[1719219811014,30.0,125.92,125.88,0.34]
[1719219811392,7.9397,125.95,125.88,0.34]
[1719219811595,23.196,125.96,125.87,8.88204554]
[1719219811799,7.9413,125.93,125.87,8.88204554]
[1719219812109,7.9416,125.92,125.87,8.88204554]
[1719219812716,7.9416,125.92,125.87,7.0442343]
[1719219813213,7.9423,125.91,125.87,0.8620343]
[1719219813914,7.9428,125.9,125.87,0.8620343]
[1719219814115,7.9424,125.91,125.87,0.8620343]
[1719219815023,7.9436,125.89,125.87,0.8620343]
[1719219815391,7.944,125.88,125.87,0.8620343]
[1719219815901,72.8041,125.88,125.87,0.8620343]
[1719219816093,72.9741,125.88,125.87,0.8620343]
[1719219816807,73.1441,125.88,125.87,0.8620343]
[1719219817818,73.1441,125.88,125.77,6.0921]
[1719219817819,7.9469,125.84,125.77,6.0921]
[1719219817993,7.946,125.85,125.77,6.0921]
[1719219818194,45.0,125.84,125.77,6.0921]
[1719219819006,45.0,125.84,125.77,14.0431]
[1719219819206,45.0,125.85,125.77,14.0431]
[1719219819518,52.9459,125.85,125.77,6.0921]
[1719219820418,7.9466,125.84,125.77,6.0921]
[1719219821712,7.9472,125.83,125.77,6.0921]
[1719219822012,52.9472,125.83,125.77,6.0921]
[1719219822216,7.9485,125.81,125.77,6.0921]
[1719219822420,0.34,125.84,125.77,6.0921]
[1719219822421,52.9481,125.82,125.77,6.0921]
[1719219822712,7.9481,125.82,125.77,6.0921]
[1719219823515,7.9474,125.83,125.77,6.0921]
[1719219823711,45.0,125.82,125.77,6.0921]
[1719219824105,52.9481,125.82,125.77,6.0921]
[1719219825521,7.9491,125.8,125.77,6.0921]
[1719219825705,7.9491,125.8,125.76,0.5154]
[1719219826302,45.0,125.82,125.74,7.4916343]
[1719219826511,7.9491,125.8,125.74,7.4916343]
[1719219827597,19.8691,125.83,125.74,9.33134561]
[1719219827598,7.9474,125.83,125.74,9.33134561]
[1719219827813,7.9474,125.83,125.75,0.34]
[1719219828128,22.239,125.87,125.75,0.34]
[1719219828419,7.9482,125.82,125.75,0.34]
[1719219828725,19.8678,125.84,125.74,9.33134561]
[1719219828929,7.9491,125.8,125.74,7.4916343]
[1719219829798,7.9487,125.81,125.74,7.4916343]
[1719219830328,7.9491,125.8,125.74,7.4916343]
[1719219830619,7.9479,125.82,125.74,7.4916343]
[1719219830803,7.9479,125.82,125.75,0.17]
[1719219831007,7.9463,125.85,125.76,7.9513]
[1719219831200,30.0563131,125.87,125.78,7.9501]
[1719219831517,30.0563131,125.87,125.77,0.34]
[1719219831518,7.9453,125.86,125.79,1.3774]
[1719219831913,7.9443,125.88,125.8,6.8113]
[1719219832115,7.9432,125.9,125.81,0.17]
[1719219832319,16.1182,125.91,125.81,0.17]
[1719219832320,7.9437,125.89,125.81,0.17]
[1719219832702,7.9441,125.88,125.81,1.71702122]
[1719219832902,7.9436,125.89,125.82,0.17]
[1719219833207,22.60182994,125.91,125.82,1.54694567]
[1719219833403,19.8571,125.9,125.82,1.54694567]
[1719219833825,22.77182994,125.91,125.82,1.54694567]
[1719219834026,7.9435,125.89,125.82,1.54694567]
[1719219834408,6.48362994,125.91,125.82,1.54694567]
[1719219834609,19.8541,125.92,125.82,1.54694567]
[1719219834807,7.9434,125.89,125.82,1.54694567]
[1719219835617,7.9464,125.85,125.8,6.6413]
[1719219836108,19.863,125.87,125.8,6.6413]
[1719219836306,7.9464,125.85,125.8,6.6413]
[1719219836512,7.9466,125.84,125.8,6.6413]
[1719219836722,7.9498,125.79,125.77,6.261]
[1719219836929,45.0,125.87,125.77,6.261]
[1719219837110,7.9474,125.83,125.77,6.261]
[1719219837313,7.9468,125.84,125.77,6.261]
[1719219837814,7.9468,125.84,125.78,1.58769573]
[1719219838542,7.948,125.82,125.77,6.261]
[1719219838904,7.9473,125.83,125.77,6.261]
[1719219839316,7.948,125.82,125.78,0.95438042]
[1719219839521,0.17,125.84,125.78,0.95438042]
[1719219839723,7.9481,125.82,125.78,0.95438042]
[1719219839913,45.0,125.81,125.78,0.95438042]
[1719219840315,7.9481,125.82,125.78,0.95438042]
[1719219840624,0.34,125.84,125.78,0.95438042]
[1719219840625,7.9497,125.79,125.78,0.95438042]
[1719219840825,45.0,125.79,125.74,7.2630343]
[1719219841207,7.9495,125.8,125.74,7.2630343]
[1719219841412,7.9482,125.82,125.74,7.2630343]
[1719219841609,8.2867,125.84,125.74,15.2158343]
[1719219841929,7.9467,125.84,125.74,15.2157343]
[1719219842131,15.4279,125.85,125.75,0.17]
[1719219842429,15.4279,125.85,125.75,0.34]
[1719219842832,7.9474,125.83,125.75,0.34]
[1719219843047,7.9467,125.84,125.75,0.34]
[1719219843339,7.9464,125.85,125.76,1.3774]
[1719219843629,28.13467253,125.88,125.76,1.3774]
[1719219843630,52.9471,125.84,125.76,1.3774]
[1719219844419,7.9476,125.83,125.76,1.3774]
[1719219844820,28.13467253,125.88,125.77,0.17]
[1719219845146,7.9458,125.86,125.77,8.2909]
[1719219845429,7.9453,125.86,125.78,7.12093793]
[1719219845606,7.9453,125.86,125.79,0.34]
[1719219845810,7.9449,125.87,125.79,1.42256579]
[1719219846218,21.8959,125.91,125.79,9.37226579]
[1719219846525,7.945,125.87,125.79,0.34]
[1719219846733,7.9443,125.88,125.79,0.34]
[1719219846903,7.9443,125.88,125.8,1.3774]
[1719219847113,7.9443,125.88,125.81,0.17]
[1719219847425,7.9436,125.89,125.81,0.17]
[1719219847609,7.9441,125.88,125.81,0.34]
[1719219847810,7.9435,125.89,125.81,0.34]
[1719219848018,7.9443,125.88,125.81,0.34]
[1719219848224,7.9437,125.89,125.81,0.34]
[1719219848427,22.3648,125.94,125.82,6.0186]
[1719219848626,22.3648,125.94,125.83,0.34]
[1719219849014,28.78849431,125.94,125.83,0.34]
[1719219849233,7.9417,125.92,125.84,1.3774]
[1719219849420,7.941,125.93,125.85,0.34]
[1719219849620,7.941,125.93,125.86,6.2776]
[1719219850815,7.9398,125.95,125.87,0.17]
[1719219851025,6.34895385,125.96,125.87,8.2846]
[1719219851026,7.9392,125.96,125.87,8.2846]
[1719219851216,7.9386,125.97,125.87,108.2846]
[1719219851419,7.9386,125.97,125.9,1.3774]
[1719219851420,7.9384,125.97,125.9,1.3774]
[1719219851638,13.95,126.03,125.91,0.34]
[1719219851639,7.938,125.98,125.91,0.34]
[1719219851935,6.0102,126.03,125.91,0.17]
[1719219851936,7.9391,125.96,125.91,0.17]
[1719219852142,7.9396,125.95,125.9,1.3774]
[1719219852433,6.0102,126.03,125.9,1.3774]
[1719219852622,12.45450654,126.03,125.9,1.3774]
[1719219852825,7.94,125.95,125.9,1.3774]
[1719219853221,45.34,126.02,125.9,1.3774]
[1719219853424,7.94,125.95,125.9,1.3774]
[1719219853625,7.9403,125.94,125.9,1.3774]
[1719219853857,19.8459,125.98,125.9,1.3774]
[1719219854031,52.9386,125.97,125.9,1.3774]
[1719219854217,7.9393,125.96,125.9,1.3774]
[1719219854540,6.0102,126.03,125.9,1.3774]
[1719219854730,6.0102,126.03,125.92,6.2955]
[1719219855127,7.9363,126.01,125.93,0.34]
[1719219855327,6.5276,126.06,125.93,0.34]
[1719219855523,7.9379,125.98,125.92,6.2955]
[1719219855724,6.2955,126.05,125.92,6.2955]
[1719219856042,7.9382,125.98,125.92,6.2955]
[1719219856615,7.9385,125.97,125.92,6.2955]
[1719219856825,45.0,125.96,125.92,6.2955]
[1719219857021,7.9406,125.94,125.92,6.2955]
[1719219857236,7.9409,125.93,125.9,1.3774]
[1719219857433,7.9405,125.94,125.9,1.3774]
[1719219857841,45.0,125.96,125.86,385.8]
[1719219857842,7.9441,125.88,125.86,385.8]
[1719219858031,0.17,125.93,125.85,7.6439]
[1719219858237,7.9436,125.89,125.85,7.6439]
[1719219858540,7.9435,125.89,125.85,7.6439]
[1719219858923,7.943,125.9,125.85,7.6439]
[1719219859336,7.9436,125.89,125.85,7.6439]
[1719219859522,7.9436,125.89,125.85,6.2665]
[1719219859931,7.943,125.9,125.85,6.2665]
[1719219860521,20.1925,125.93,125.85,6.2665]
[1719219860522,7.9422,125.91,125.85,6.2665]
[1719219861038,7.9429,125.9,125.85,6.2665]
[1719219861234,7.9434,125.89,125.85,6.2665]
[1719219861434,7.9434,125.89,125.82,7.8369]
[1719219861744,7.9435,125.89,125.82,7.8369]
[1719219862037,7.9447,125.87,125.82,7.8369]
[1719219863118,7.9454,125.86,125.82,6.4595]
[1719219863441,7.946,125.85,125.78,7.8887]
[1719219863620,0.17,125.87,125.78,7.8887]
[1719219863826,45.34,125.88,125.78,15.8386]
[1719219864042,7.9464,125.85,125.78,7.8887]
[1719219864222,45.34,125.88,125.78,7.8887]
[1719219864223,7.9472,125.83,125.78,7.8887]
[1719219864622,7.9467,125.84,125.78,7.8887]
[1719219865047,7.9459,125.85,125.78,7.8887]
[1719219865253,45.17,125.88,125.78,7.8887]
[1719219865458,7.9463,125.85,125.78,7.8887]
[1719219865755,7.9455,125.86,125.78,7.8887]
[1719219865935,7.946,125.85,125.78,7.8887]
[1719219866136,45.17,125.88,125.78,7.8887]
[1719219866137,0.17,125.86,125.78,7.8887]
[1719219866351,7.9479,125.82,125.78,7.8887]
[1719219866726,7.9474,125.83,125.78,7.8887]
[1719219866935,0.17,125.87,125.78,6.5113]
[1719219866936,7.9488,125.81,125.78,6.5113]
[1719219867758,7.9488,125.81,125.75,6.4575]
[1719219867958,7.948,125.82,125.75,6.4575]
[1719219868326,19.8662,125.85,125.75,6.4575]
[1719219868327,7.9485,125.81,125.75,6.4575]
[1719219868527,19.8662,125.85,125.75,6.4575]
[1719219868528,25.9262,125.85,125.75,6.4575]
[1719219868730,7.9492,125.8,125.75,6.4575]
[1719219869240,7.9489,125.81,125.75,6.4575]
[1719219869447,7.9495,125.8,125.75,6.4575]
[1719219870230,7.9499,125.79,125.75,6.4575]
[1719219870433,7.9494,125.8,125.75,6.4575]
[1719219871740,7.9487,125.81,125.75,6.4575]
[1719219872245,6.06,125.85,125.75,6.4575]
[1719219872448,7.9475,125.83,125.75,6.4575]
[1719219872832,7.948,125.82,125.75,6.4575]
[1719219873856,14.24894337,125.85,125.76,8.1214]
[1719219874145,7.9454,125.86,125.77,8.1208]
[1719219874354,7.9459,125.85,125.77,0.17]
[1719219874533,7.9466,125.84,125.77,0.17]
[1719219874954,7.9468,125.84,125.76,0.34]
[1719219875130,12.92964749,125.88,125.76,0.34]
[1719219875335,7.9475,125.83,125.76,0.34]
[1719219875540,45.17,125.87,125.76,0.34]
[1719219875745,7.947,125.84,125.76,0.34]
[1719219876775,7.9473,125.83,125.76,0.34]
[1719219877755,7.9476,125.83,125.75,6.4575]
[1719219879168,7.9476,125.83,125.75,14.4097]
[1719219879460,19.8664,125.85,125.78,1.3774]
[1719219879461,7.9464,125.85,125.78,1.3774]
[1719219879832,7.9466,125.84,125.78,1.3774]
[1719219881643,7.9462,125.85,125.78,1.3774]
[1719219881947,7.9455,125.86,125.78,1.3774]
[1719219882453,45.0,125.87,125.78,1.3774]
[1719219882454,7.9482,125.82,125.78,1.3774]
[1719219882657,45.0,125.87,125.78,1.3774]
[1719219882967,7.9469,125.84,125.78,1.3774]
[1719219883171,7.9461,125.85,125.78,1.3774]
[1719219883544,7.9461,125.85,125.78,2.33452632]
[1719219883756,7.9455,125.86,125.78,2.33452632]
[1719219884579,7.9455,125.86,125.78,1.3774]
[1719219884747,7.9468,125.84,125.78,1.3774]
[1719219885068,7.9462,125.85,125.78,1.3774]
[1719219886265,45.0,125.88,125.78,1.3774]
[1719219886474,7.9448,125.87,125.79,6.5863]
[1719219886838,14.47605635,125.89,125.79,6.5863]
[1719219887142,7.9445,125.88,125.79,14.5357]
[1719219887852,7.945,125.87,125.79,14.536]
[1719219888455,7.9455,125.86,125.79,6.5863]
[1719219889672,60.83409184,125.91,125.79,6.4163]
[1719219889969,7.9462,125.85,125.79,6.4163]
[1719219890470,7.9466,125.84,125.79,6.2463]
[1719219890973,7.9478,125.82,125.78,1.3774]
[1719219891170,7.9478,125.82,125.75,387.63956501]
[1719219891378,7.9495,125.8,125.75,385.8]
[1719219891847,7.9487,125.81,125.75,385.8]
[1719219892878,7.9481,125.82,125.75,385.8]
[1719219893079,19.8685,125.83,125.75,385.8]
[1719219893080,7.9473,125.83,125.75,385.8]
[1719219893372,19.8619,125.87,125.76,0.34]
[1719219893852,7.9472,125.83,125.76,0.34]
[1719219895381,7.9466,125.84,125.76,0.34]
[1719219896155,7.9475,125.83,125.76,0.34]
[1719219897260,70.7594,125.88,125.75,1.83956501]
[1719219897578,7.9492,125.8,125.75,1.83956501]
[1719219899550,7.9492,125.8,125.74,0.8620343]
[1719219900277,7.9498,125.79,125.74,0.8620343]
[1719219901352,7.9506,125.78,125.74,0.8620343]
[1719219901551,7.95,125.79,125.74,0.8620343]
[1719219902086,93.16,125.87,125.75,7.9522]
[1719219902087,7.9468,125.84,125.75,7.9522]
[1719219902377,7.9472,125.83,125.76,0.17]
[1719219902610,7.9472,125.83,125.75,0.34]
[1719219903175,7.9478,125.82,125.75,0.34]
[1719219903354,7.9475,125.83,125.75,0.34]
[1719219903554,7.948,125.82,125.75,0.34]
[1719219904660,77.14684622,125.88,125.75,0.17]
[1719219904661,7.9493,125.8,125.75,0.17]
[1719219904855,7.9486,125.81,125.75,0.17]
[1719219905261,19.8679,125.84,125.73,6.9760343]
[1719219905577,7.9492,125.8,125.73,6.9760343]
[1719219905770,7.9498,125.79,125.73,6.9760343]
[1719219906560,7.9494,125.8,125.73,6.9760343]
[1719219906956,65.2093,125.83,125.73,6.9760343]
[1719219907149,7.9486,125.81,125.74,0.17]
[1719219907368,7.9486,125.81,125.73,6.9760343]
[1719219907369,19.8708,125.82,125.73,6.9760343]
[1719219907574,7.9503,125.78,125.73,6.9760343]
[1719219907881,7.951,125.77,125.73,6.9760343]
[1719219908182,7.9521,125.76,125.73,6.9760343]
[1719219908355,7.9521,125.76,125.73,5.5986343]
[1719219908557,7.9521,125.76,125.71,385.8]
[1719219909164,0.34,125.81,125.7,7.076]
[1719219909165,19.8777,125.77,125.7,7.076]
[1719219909366,7.9526,125.75,125.7,7.076]
[1719219909761,7.9519,125.76,125.7,7.076]
[1719219909971,69.6085,125.82,125.7,7.076]
[1719219909972,7.9529,125.74,125.7,7.076]
[1719219910173,7.9525,125.75,125.7,7.076]
[1719219911284,7.9531,125.74,125.7,5.6986]
[1719219912187,19.8787,125.77,125.7,5.6986]
[1719219912362,52.952,125.76,125.7,5.6986]
[1719219912560,45.0,125.76,125.7,5.6986]
[1719219912764,7.9525,125.75,125.7,5.6986]
[1719219913170,45.0,125.76,125.7,5.6986]
[1719219913854,7.9542,125.72,125.7,5.6986]
[1719219914060,7.9542,125.72,125.64,385.8]
[1719219914061,21.1072,125.75,125.67,5.6986]
[1719219914356,7.9561,125.69,125.64,7.076]
[1719219914556,7.9563,125.69,125.64,7.076]
[1719219916203,0.17,125.73,125.64,7.076]
[1719219916204,7.9581,125.66,125.64,7.076]
[1719219916363,7.9581,125.66,125.62,0.8620343]
[1719219918277,45.0,125.65,125.62,0.8620343]
[1719219918478,45.0,125.65,125.58,7.076]
[1719219918909,7.959,125.65,125.58,7.076]
[1719219919394,0.17,125.67,125.54,1.3774]
[1719219919565,22.8876,125.69,125.53,5.6986]
[1719219919566,7.9634,125.58,125.53,5.6986]
[1719219919900,92.99,125.68,125.53,5.6986]
[1719219919901,7.9616,125.61,125.53,5.6986]
[1719219920572,7.9607,125.62,125.53,5.6986]
[1719219921281,7.9611,125.61,125.53,5.6986]
[1719219921487,7.9618,125.6,125.53,5.6986]
[1719219922275,7.9618,125.6,125.54,0.17]
[1719219922596,7.9612,125.61,125.53,5.6986]
[1719219922765,7.9619,125.6,125.53,5.6986]
[1719219922971,7.9614,125.61,125.53,5.6986]
[1719219923497,7.9621,125.6,125.53,5.6986]
[1719219924370,6.46395609,125.65,125.53,5.6986]
[1719219924591,47.82,125.65,125.53,5.6986]
[1719219924894,7.9627,125.59,125.53,5.6986]
[1719219925210,7.962,125.6,125.53,5.6986]
[1719219925575,19.9025,125.62,125.53,5.6986]
[1719219925576,7.9625,125.59,125.53,5.6986]
[1719219926090,7.9622,125.6,125.53,5.6986]
[1719219926879,7.9613,125.61,125.53,5.6986]
[1719219927080,7.9613,125.61,125.54,0.17]
[1719219927298,45.0,125.6,125.53,5.6986]
[1719219927993,52.9621,125.6,125.53,5.6986]
[1719219928512,19.9011,125.63,125.53,5.6986]
[1719219928689,7.9614,125.61,125.54,0.34]
[1719219929875,7.9618,125.6,125.54,0.34]
[1719219930076,19.9011,125.63,125.54,0.34]
[1719219930077,7.9614,125.61,125.54,0.34]
[1719219930277,7.9621,125.6,125.54,0.34]
[1719219930481,19.9011,125.63,125.53,5.6986]
[1719219930482,7.9624,125.59,125.53,5.6986]
[1719219930680,7.9619,125.6,125.53,5.6986]
[1719219930904,19.9011,125.63,125.53,5.6986]
[1719219930905,7.9626,125.59,125.53,5.6986]
[1719219932309,19.9047,125.6,125.53,5.6986]
[1719219932681,7.9641,125.57,125.53,5.6986]
[1719219933379,19.9047,125.6,125.53,5.6986]
[1719219933596,7.9643,125.56,125.51,1.3774]
[1719219934011,7.965,125.55,125.51,1.3774]
[1719219934215,19.9077,125.58,125.51,1.3774]
[1719219934510,7.9656,125.54,125.5,5.6986]
[1719219934679,65.0762,125.59,125.5,5.6986]
[1719219934882,7.9638,125.57,125.5,5.6986]
[1719219935213,7.9628,125.59,125.5,105.6986]
[1719219935389,15.4794,125.61,125.5,5.6986]
[1719219935592,45.17,125.6,125.5,5.6986]
[1719219935917,7.9651,125.55,125.5,5.6986]
[1719219936210,7.9652,125.55,125.5,5.6986]
[1719219936384,7.9643,125.57,125.5,5.6986]
[1719219936707,7.9628,125.59,125.51,0.17]
[1719219936881,7.9628,125.59,125.5,13.6663]
[1719219936882,54.0622,125.63,125.5,5.6986]
[1719219937086,7.9651,125.55,125.5,5.6986]
[1719219937598,19.9048,125.6,125.5,5.6986]
[1719219937808,7.9641,125.57,125.5,5.6986]
[1719219938302,60.57659219,125.63,125.5,5.6986]
[1719219938627,6.6319,125.57,125.49,0.8620343]
[1719219938913,7.9681,125.5,125.49,0.8620343]
[1719219939128,7.9676,125.51,125.49,0.8620343]
[1719219939279,19.9158,125.53,125.49,0.8620343]
[1719219939486,7.9673,125.52,125.49,0.8620343]
[1719219939685,7.9658,125.54,125.49,0.8620343]
[1719219939901,7.965,125.55,125.49,0.8620343]
[1719219940136,7.9633,125.58,125.5,5.6986]
[1719219940288,6.6319,125.6,125.5,5.6986]
[1719219940608,7.9644,125.56,125.5,5.6986]
[1719219940915,7.9633,125.58,125.5,5.6986]
[1719219941095,6.6319,125.6,125.5,5.6986]
[1719219941096,7.9618,125.6,125.51,1.3774]
[1719219941413,7.963,125.58,125.51,1.5474]
[1719219941787,16.5982,125.61,125.51,1.5474]
[1719219941993,7.9638,125.57,125.51,1.3774]
[1719219942221,16.5982,125.61,125.51,1.3774]
[1719219942514,7.9637,125.57,125.51,1.3774]
[1719219942893,16.5982,125.61,125.51,1.3774]
[1719219943093,7.9626,125.59,125.51,1.3774]
[1719219943289,7.9633,125.58,125.51,1.3774]
[1719219943599,7.9634,125.58,125.51,1.3774]
[1719219944214,7.9639,125.57,125.51,1.3774]
[1719219944417,7.9643,125.56,125.51,1.3774]
[1719219944713,7.965,125.55,125.51,1.3774]
[1719219945211,7.9643,125.57,125.51,1.3774]
[1719219945411,64.4182,125.61,125.51,1.3774]
[1719219945614,64.4182,125.61,125.5,5.6986]
[1719219945615,7.9662,125.53,125.5,5.6986]
[1719219945800,93.16,125.6,125.5,5.6986]
[1719219945987,93.16,125.6,125.49,0.8620343]
[1719219946188,7.9671,125.52,125.49,0.8620343]
[1719219946516,47.82,125.58,125.49,0.8620343]
[1719219946695,6.156,125.59,125.49,0.8620343]
[1719219946696,93.16,125.57,125.49,0.8620343]
[1719219946900,7.9664,125.53,125.49,0.8620343]
[1719219947215,93.16,125.57,125.49,0.8620343]
[1719219947420,7.9673,125.52,125.49,0.8620343]
[1719219947583,7.9675,125.51,125.49,0.8620343]
[1719219947786,7.967,125.52,125.49,0.8620343]